[Event "Titled Tuesday Blitz August 16 Early 2022"]
[White "Lakshmi C"]
[Black "Schekachikhin, Maksim"]
[WhiteFideId "25035347"]
[BlackFideId "24177830"]
[WhiteElo "1775"]
[BlackElo "2239"]
[Result "1-0"]
[Round "01"]
[TimeControl "180+2"]
[Date "2022.08.18"]
[WhiteClock "0:00:00"]
[BlackClock "0:00:00"]

1. e4 {[%clk 0:00:00]}  c5 {[%clk 0:00:00]} 2. Nf3 {[%clk 0:00:00]}  e6 {[%clk 0:00:00]} 3. d4 {[%clk 0:00:00]}  cxd4 {[%clk 0:00:00]} 4. Nxd4 {[%clk 0:00:00]}  Nc6 {[%clk 0:00:00]} 5. Nc3 {[%clk 0:00:00]}  Qc7 {[%clk 0:00:00]} 6. a3 {[%clk 0:00:00]}  Nf6 {[%clk 0:00:00]} 7. Be3 {[%clk 0:00:00]}  d6 {[%clk 0:00:00]} 8. Be2 {[%clk 0:00:00]}  Be7 {[%clk 0:00:00]} 9. O-O {[%clk 0:00:00]}  O-O {[%clk 0:00:00]} 10. Nb3 {[%clk 0:00:00]}  Bd7 {[%clk 0:00:00]} 11. f4 {[%clk 0:00:00]}  a6 {[%clk 0:00:00]} 12. Qe1 {[%clk 0:00:00]}  Na5 {[%clk 0:00:00]} 13. Nxa5 {[%clk 0:00:00]}  Qxa5 {[%clk 0:00:00]} 14. Nd5 {[%clk 0:00:00]}  Qd8 {[%clk 0:00:00]} 15. Bb6 {[%clk 0:00:00]}  Qe8 {[%clk 0:00:00]} 16. Nc7 {[%clk 0:00:00]}  Qc8 {[%clk 0:00:00]} 17. Nxa8 {[%clk 0:00:00]}  Qxa8 {[%clk 0:00:00]} 18. Bd3 {[%clk 0:00:00]}  Qc8 {[%clk 0:00:00]} 19. h3 {[%clk 0:00:00]}  Bc6 {[%clk 0:00:00]} 20. Qe3 {[%clk 0:00:00]}  d5 {[%clk 0:00:00]} 21. e5 {[%clk 0:00:00]}  Ne4 {[%clk 0:00:00]} 22. Bxe4 {[%clk 0:00:00]}  dxe4 {[%clk 0:00:00]} 23. Rfd1 {[%clk 0:00:00]}  Bd5 {[%clk 0:00:00]} 24. Rac1 {[%clk 0:00:00]}  Qc4 {[%clk 0:00:00]} 25. b3 {[%clk 0:00:00]}  Qc8 {[%clk 0:00:00]} 26. c4 {[%clk 0:00:00]}  Bc6 {[%clk 0:00:00]} 27. b4 {[%clk 0:00:00]}  f5 {[%clk 0:00:00]} 28. b5 {[%clk 0:00:00]}  Be8 {[%clk 0:00:00]} 29. a4 {[%clk 0:00:00]}  g5 {[%clk 0:00:00]} 30. g3 {[%clk 0:00:00]}  Bh5 {[%clk 0:00:00]} 31. Rd2 {[%clk 0:00:00]}  gxf4 {[%clk 0:00:00]} 32. gxf4 {[%clk 0:00:00]}  Bf3 {[%clk 0:00:00]} 33. Kh2 {[%clk 0:00:00]}  Kh8 {[%clk 0:00:00]} 34. c5 {[%clk 0:00:00]}  axb5 {[%clk 0:00:00]} 35. axb5 {[%clk 0:00:00]}  Qe8 {[%clk 0:00:00]} 36. c6 {[%clk 0:00:00]}  bxc6 {[%clk 0:00:00]} 37. bxc6 {[%clk 0:00:00]}  Qh5 {[%clk 0:00:00]} 38. c7 {[%clk 0:00:00]}  Rc8 {[%clk 0:00:00]} 39. Rd8+ {[%clk 0:00:00]}  Bxd8 {[%clk 0:00:00]} 40. cxd8=Q+ {[%clk 0:00:00]}  Rxd8 {[%clk 0:00:00]} 41. Bxd8 {[%clk 0:00:00]} 1-0


[Site "https://www.chess.com"]

[Event "Titled Tuesday Blitz August 16 Early 2022"]
[White "Lehtosaari, Mauri"]
[Black "Babazada, Khazar"]
[WhiteFideId "501999"]
[BlackFideId "13413554"]
[WhiteElo "2519"]
[BlackElo "2409"]
[Result "0-1"]
[Round "01"]
[TimeControl "180+1"]
[Date "2022.08.16"]
[WhiteClock "0:00:05"]
[BlackClock "0:00:52"]

1. d4 {[%clk 0:02:58]}  g6 {[%clk 0:02:36]} 2. Nf3 {[%clk 0:02:57]}  Bg7 {[%clk 0:02:37]} 3. Bg5 {[%clk 0:02:57]}  d6 {[%clk 0:02:37]} 4. c3 {[%clk 0:02:57]}  h6 {[%clk 0:02:38]} 5. Bh4 {[%clk 0:02:56]}  Nf6 {[%clk 0:02:39]} 6. e3 {[%clk 0:02:55]}  O-O {[%clk 0:02:39]} 7. Nbd2 {[%clk 0:02:53]}  b6 {[%clk 0:02:40]} 8. Bc4 {[%clk 0:02:50]}  Bb7 {[%clk 0:02:40]} 9. Qc2 {[%clk 0:02:49]}  e6 {[%clk 0:02:39]} 10. a4 {[%clk 0:02:49]}  a6 {[%clk 0:02:38]} 11. Ba2 {[%clk 0:02:49]}  Nbd7 {[%clk 0:02:38]} 12. O-O {[%clk 0:02:44]}  Qe8 {[%clk 0:02:39]} 13. Bxf6 {[%clk 0:02:30]}  Nxf6 {[%clk 0:02:39]} 14. e4 {[%clk 0:02:31]}  e5 {[%clk 0:02:39]} 15. dxe5 {[%clk 0:02:28]}  dxe5 {[%clk 0:02:40]} 16. Rfe1 {[%clk 0:02:29]}  Rd8 {[%clk 0:02:38]} 17. a5 {[%clk 0:02:24]}  b5 {[%clk 0:02:38]} 18. b4 {[%clk 0:02:19]}  Qe7 {[%clk 0:02:34]} 19. Nb3 {[%clk 0:02:13]}  Rd6 {[%clk 0:02:35]} 20. Nc5 {[%clk 0:02:14]}  Ba8 {[%clk 0:02:34]} 21. Rad1 {[%clk 0:02:11]}  Rfd8 {[%clk 0:02:35]} 22. Rxd6 {[%clk 0:02:11]}  cxd6 {[%clk 0:02:35]} 23. Nb3 {[%clk 0:02:06]}  Rc8 {[%clk 0:02:35]} 24. Nbd2 {[%clk 0:02:04]}  Qc7 {[%clk 0:02:32]} 25. Rc1 {[%clk 0:02:03]}  d5 {[%clk 0:02:31]} 26. exd5 {[%clk 0:01:58]}  Nxd5 {[%clk 0:02:32]} 27. Bxd5 {[%clk 0:01:41]}  Bxd5 {[%clk 0:02:33]} 28. Ne4 {[%clk 0:01:36]}  Qc6 {[%clk 0:02:32]} 29. Nc5 {[%clk 0:01:34]}  Bxf3 {[%clk 0:02:31]} 30. gxf3 {[%clk 0:01:35]}  Qxf3 {[%clk 0:02:31]} 31. c4 {[%clk 0:01:09]}  Bf8 {[%clk 0:02:02]} 32. cxb5 {[%clk 0:01:05]}  axb5 {[%clk 0:02:03]} 33. a6 {[%clk 0:01:04]}  Qa3 {[%clk 0:02:03]} 34. Qc3 {[%clk 0:00:46]}  Qxc3 {[%clk 0:01:36]} 35. Rxc3 {[%clk 0:00:47]}  Ra8 {[%clk 0:01:37]} 36. Ra3 {[%clk 0:00:44]}  Be7 {[%clk 0:01:34]} 37. Ra5 {[%clk 0:00:40]}  h5 {[%clk 0:01:20]} 38. Rxb5 {[%clk 0:00:35]}  Bxc5 {[%clk 0:01:20]} 39. Rxc5 {[%clk 0:00:34]}  Rxa6 {[%clk 0:01:20]} 40. Rxe5 {[%clk 0:00:35]}  Rb6 {[%clk 0:01:20]} 41. b5 {[%clk 0:00:34]}  Kg7 {[%clk 0:01:20]} 42. Rc5 {[%clk 0:00:34]}  Kf6 {[%clk 0:01:21]} 43. Kg2 {[%clk 0:00:35]}  Ke6 {[%clk 0:01:21]} 44. Kg3 {[%clk 0:00:34]}  Kd6 {[%clk 0:01:22]} 45. Rg5 {[%clk 0:00:31]}  Rb8 {[%clk 0:01:22]} 46. h4 {[%clk 0:00:29]}  Ra8 {[%clk 0:01:22]} 47. f3 {[%clk 0:00:26]}  Ra2 {[%clk 0:01:20]} 48. Kf4 {[%clk 0:00:22]}  Rb2 {[%clk 0:01:15]} 49. Kg3 {[%clk 0:00:20]}  Rb3 {[%clk 0:01:11]} 50. Kf4 {[%clk 0:00:20]}  Rc3 {[%clk 0:01:02]} 51. Re5 {[%clk 0:00:07]}  Rb3 {[%clk 0:00:56]} 52. Rg5 {[%clk 0:00:05]}  Rb1 {[%clk 0:00:55]} 53. Kg3 {[%clk 0:00:04]}  f6 {[%clk 0:00:56]} 54. Rxg6 {[%clk 0:00:04]}  Rg1+ {[%clk 0:00:56]} 55. Kf4 {[%clk 0:00:04]}  Rxg6 {[%clk 0:00:57]} 56. Kf5 {[%clk 0:00:04]}  Rg3 {[%clk 0:00:53]} 57. f4 {[%clk 0:00:05]}  Rb3 {[%clk 0:00:53]} 58. Kxf6 {[%clk 0:00:05]}  Rxb5 {[%clk 0:00:53]} 59. Kg6 {[%clk 0:00:05]}  Ke6 {[%clk 0:00:52]} 0-1


[Site "https://www.chess.com"]

[Event "Titled Tuesday Blitz August 16 Early 2022"]
[White "Maksimenko, Viktor"]
[Black "Schut, Han"]
[WhiteFideId "13710478"]
[BlackFideId "1005561"]
[WhiteElo "2269"]
[BlackElo "2024"]
[Result "1-0"]
[Round "01"]
[TimeControl "180+2"]
[Date "2022.08.18"]
[WhiteClock "0:00:00"]
[BlackClock "0:00:00"]

1. d4 {[%clk 0:00:00]}  Nf6 {[%clk 0:00:00]} 2. Nf3 {[%clk 0:00:00]}  g6 {[%clk 0:00:00]} 3. g3 {[%clk 0:00:00]}  Bg7 {[%clk 0:00:00]} 4. Bg2 {[%clk 0:00:00]}  O-O {[%clk 0:00:00]} 5. O-O {[%clk 0:00:00]}  d5 {[%clk 0:00:00]} 6. c4 {[%clk 0:00:00]}  dxc4 {[%clk 0:00:00]} 7. e3 {[%clk 0:00:00]}  c6 {[%clk 0:00:00]} 8. a4 {[%clk 0:00:00]}  Be6 {[%clk 0:00:00]} 9. Na3 {[%clk 0:00:00]}  Nbd7 {[%clk 0:00:00]} 10. Ng5 {[%clk 0:00:00]}  Bd5 {[%clk 0:00:00]} 11. e4 {[%clk 0:00:00]}  h6 {[%clk 0:00:00]} 12. exd5 {[%clk 0:00:00]}  hxg5 {[%clk 0:00:00]} 13. dxc6 {[%clk 0:00:00]}  bxc6 {[%clk 0:00:00]} 14. Bxg5 {[%clk 0:00:00]}  Nb6 {[%clk 0:00:00]} 15. a5 {[%clk 0:00:00]}  Nbd5 {[%clk 0:00:00]} 16. Nxc4 {[%clk 0:00:00]}  Rb8 {[%clk 0:00:00]} 17. Re1 {[%clk 0:00:00]}  Rb4 {[%clk 0:00:00]} 18. Qc2 {[%clk 0:00:00]}  e6 {[%clk 0:00:00]} 19. Ne5 {[%clk 0:00:00]}  Qb8 {[%clk 0:00:00]} 20. Re2 {[%clk 0:00:00]}  Qb5 {[%clk 0:00:00]} 21. Bf1 {[%clk 0:00:00]}  Rxd4 {[%clk 0:00:00]} 22. Qxc6 {[%clk 0:00:00]}  Qxc6 {[%clk 0:00:00]} 23. Nxc6 {[%clk 0:00:00]}  Rd3 {[%clk 0:00:00]} 24. Rxe6 {[%clk 0:00:00]}  Rxg3+ {[%clk 0:00:00]} 25. hxg3 {[%clk 0:00:00]}  fxe6 {[%clk 0:00:00]} 26. Nxa7 {[%clk 0:00:00]}  Ne4 {[%clk 0:00:00]} 27. Be3 {[%clk 0:00:00]}  Nxe3 {[%clk 0:00:00]} 28. fxe3 {[%clk 0:00:00]}  Bxb2 {[%clk 0:00:00]} 29. Ra2 {[%clk 0:00:00]}  Be5 {[%clk 0:00:00]} 30. a6 {[%clk 0:00:00]}  Nxg3 {[%clk 0:00:00]} 31. Bc4 {[%clk 0:00:00]}  Kg7 {[%clk 0:00:00]} 32. Nc6 {[%clk 0:00:00]}  Bd6 {[%clk 0:00:00]} 33. a7 {[%clk 0:00:00]}  Bc5 {[%clk 0:00:00]} 34. a8=Q {[%clk 0:00:00]}  Bxe3+ {[%clk 0:00:00]} 35. Kg2 {[%clk 0:00:00]}  Rxa8 {[%clk 0:00:00]} 36. Rxa8 {[%clk 0:00:00]}  Nf5 {[%clk 0:00:00]} 37. Bxe6 {[%clk 0:00:00]}  Bd4 {[%clk 0:00:00]} 38. Bxf5 {[%clk 0:00:00]} 1-0


[Site "https://www.chess.com"]

[Event "Titled Tuesday Blitz August 16 Early 2022"]
[White "Mamedov, Rauf"]
[Black "Yedidia, Daniel"]
[WhiteFideId "13401653"]
[BlackFideId "30905907"]
[WhiteElo "2666"]
[BlackElo "2538"]
[Result "1-0"]
[Round "01"]
[TimeControl "180+1"]
[Date "2022.08.16"]
[WhiteClock "0:02:03"]
[BlackClock "0:00:38"]

1. e4 {[%clk 0:03:00]}  e5 {[%clk 0:02:59]} 2. Nf3 {[%clk 0:03:00]}  Nc6 {[%clk 0:02:58]} 3. Bc4 {[%clk 0:03:00]}  Nf6 {[%clk 0:02:58]} 4. d4 {[%clk 0:02:59]}  exd4 {[%clk 0:02:54]} 5. e5 {[%clk 0:03:00]}  Ne4 {[%clk 0:02:50]} 6. Qe2 {[%clk 0:02:57]}  Nc5 {[%clk 0:02:42]} 7. O-O {[%clk 0:02:57]}  Be7 {[%clk 0:02:42]} 8. Rd1 {[%clk 0:02:57]}  d6 {[%clk 0:02:42]} 9. exd6 {[%clk 0:02:49]}  cxd6 {[%clk 0:02:42]} 10. c3 {[%clk 0:02:39]}  d3 {[%clk 0:02:37]} 11. Qe3 {[%clk 0:02:36]}  O-O {[%clk 0:02:29]} 12. b4 {[%clk 0:02:36]}  Nd7 {[%clk 0:02:25]} 13. Bxd3 {[%clk 0:02:35]}  Nde5 {[%clk 0:02:17]} 14. Be4 {[%clk 0:02:33]}  Be6 {[%clk 0:02:11]} 15. Nbd2 {[%clk 0:02:31]}  f5 {[%clk 0:02:06]} 16. Bxc6 {[%clk 0:02:31]}  bxc6 {[%clk 0:01:43]} 17. Nxe5 {[%clk 0:02:30]}  dxe5 {[%clk 0:01:39]} 18. Qxe5 {[%clk 0:02:30]}  Qc8 {[%clk 0:01:30]} 19. Re1 {[%clk 0:02:29]}  Rf6 {[%clk 0:01:30]} 20. Nf3 {[%clk 0:02:25]}  Bf8 {[%clk 0:01:23]} 21. Bg5 {[%clk 0:02:24]}  Rg6 {[%clk 0:01:21]} 22. Nh4 {[%clk 0:02:23]}  Rxg5 {[%clk 0:01:09]} 23. Qxe6+ {[%clk 0:02:23]}  Qxe6 {[%clk 0:01:10]} 24. Rxe6 {[%clk 0:02:23]}  Rg4 {[%clk 0:01:10]} 25. Nxf5 {[%clk 0:02:22]}  Rc4 {[%clk 0:01:09]} 26. Ne7+ {[%clk 0:02:07]}  Bxe7 {[%clk 0:00:53]} 27. Rxe7 {[%clk 0:02:08]}  Rxc3 {[%clk 0:00:53]} 28. Rd1 {[%clk 0:02:08]}  Kf8 {[%clk 0:00:46]} 29. Rc7 {[%clk 0:02:06]}  a5 {[%clk 0:00:38]} 30. bxa5 {[%clk 0:02:03]} 1-0


[Site "https://www.chess.com"]

[Event "Titled Tuesday Blitz August 16 Early 2022"]
[White "Matyukov, Petr"]
[Black "Vovk, Orest"]
[WhiteFideId "4103688"]
[BlackFideId "14113490"]
[WhiteElo "2278"]
[BlackElo "2203"]
[Result "0-1"]
[Round "01"]
[TimeControl "180+2"]
[Date "2022.08.18"]
[WhiteClock "0:00:00"]
[BlackClock "0:00:00"]

1. c4 {[%clk 0:00:00]}  g5 {[%clk 0:00:00]} 2. g3 {[%clk 0:00:00]}  g4 {[%clk 0:00:00]} 3. Bg2 {[%clk 0:00:00]}  h5 {[%clk 0:00:00]} 4. h3 {[%clk 0:00:00]}  Bg7 {[%clk 0:00:00]} 5. hxg4 {[%clk 0:00:00]}  hxg4 {[%clk 0:00:00]} 6. Rxh8 {[%clk 0:00:00]}  Bxh8 {[%clk 0:00:00]} 7. Nc3 {[%clk 0:00:00]}  d6 {[%clk 0:00:00]} 8. d3 {[%clk 0:00:00]}  c5 {[%clk 0:00:00]} 9. Be3 {[%clk 0:00:00]}  Bxc3+ {[%clk 0:00:00]} 10. bxc3 {[%clk 0:00:00]}  Qa5 {[%clk 0:00:00]} 11. Bd2 {[%clk 0:00:00]}  Nf6 {[%clk 0:00:00]} 12. Qc2 {[%clk 0:00:00]}  Nc6 {[%clk 0:00:00]} 13. e4 {[%clk 0:00:00]}  Be6 {[%clk 0:00:00]} 14. Ne2 {[%clk 0:00:00]}  O-O-O {[%clk 0:00:00]} 15. Nf4 {[%clk 0:00:00]}  Ne5 {[%clk 0:00:00]} 16. Nxe6 {[%clk 0:00:00]}  fxe6 {[%clk 0:00:00]} 17. O-O-O {[%clk 0:00:00]}  Qa3+ {[%clk 0:00:00]} 18. Kb1 {[%clk 0:00:00]}  Rh8 {[%clk 0:00:00]} 19. Bf4 {[%clk 0:00:00]}  Rh2 {[%clk 0:00:00]} 20. Bxe5 {[%clk 0:00:00]}  Rxg2 {[%clk 0:00:00]} 21. Bxf6 {[%clk 0:00:00]}  exf6 {[%clk 0:00:00]} 22. Rh1 {[%clk 0:00:00]}  Kc7 {[%clk 0:00:00]} 23. Rh7+ {[%clk 0:00:00]}  Kc6 {[%clk 0:00:00]} 24. Rh6 {[%clk 0:00:00]}  Rg1+ {[%clk 0:00:00]} 0-1


[Site "https://www.chess.com"]

[Event "Titled Tuesday Blitz August 16 Early 2022"]
[White "McBryde, Lamel"]
[Black "Aradhya, Garg"]
[WhiteFideId "2058596"]
[BlackFideId "25006746"]
[WhiteElo "2136"]
[BlackElo "2203"]
[Result "0-1"]
[Round "01"]
[TimeControl "180+2"]
[Date "2022.08.18"]
[WhiteClock "0:00:00"]
[BlackClock "0:00:00"]

1. Nf3 {[%clk 0:00:00]}  d5 {[%clk 0:00:00]} 2. b3 {[%clk 0:00:00]}  c5 {[%clk 0:00:00]} 3. Bb2 {[%clk 0:00:00]}  f6 {[%clk 0:00:00]} 4. d4 {[%clk 0:00:00]}  cxd4 {[%clk 0:00:00]} 5. Nxd4 {[%clk 0:00:00]}  e5 {[%clk 0:00:00]} 6. Nf3 {[%clk 0:00:00]}  Nc6 {[%clk 0:00:00]} 7. e3 {[%clk 0:00:00]}  Be6 {[%clk 0:00:00]} 8. a3 {[%clk 0:00:00]}  Nh6 {[%clk 0:00:00]} 9. Nbd2 {[%clk 0:00:00]}  Be7 {[%clk 0:00:00]} 10. c4 {[%clk 0:00:00]}  O-O {[%clk 0:00:00]} 11. cxd5 {[%clk 0:00:00]}  Bxd5 {[%clk 0:00:00]} 12. Bc4 {[%clk 0:00:00]}  Rc8 {[%clk 0:00:00]} 13. Qe2 {[%clk 0:00:00]}  Na5 {[%clk 0:00:00]} 14. Bxd5+ {[%clk 0:00:00]}  Qxd5 {[%clk 0:00:00]} 15. b4 {[%clk 0:00:00]}  Rc2 {[%clk 0:00:00]} 16. bxa5 {[%clk 0:00:00]}  Rxb2 {[%clk 0:00:00]} 17. e4 {[%clk 0:00:00]}  Qxa5 {[%clk 0:00:00]} 18. O-O {[%clk 0:00:00]}  Qa6 {[%clk 0:00:00]} 19. Qc4+ {[%clk 0:00:00]}  Qxc4 {[%clk 0:00:00]} 20. Nxc4 {[%clk 0:00:00]}  Rc2 {[%clk 0:00:00]} 21. Ne3 {[%clk 0:00:00]}  Rc6 {[%clk 0:00:00]} 22. Nd5 {[%clk 0:00:00]}  Bc5 {[%clk 0:00:00]} 23. h3 {[%clk 0:00:00]}  Nf7 {[%clk 0:00:00]} 24. Rfc1 {[%clk 0:00:00]}  Rfc8 {[%clk 0:00:00]} 25. Rcb1 {[%clk 0:00:00]}  b6 {[%clk 0:00:00]} 26. a4 {[%clk 0:00:00]}  Kf8 {[%clk 0:00:00]} 27. a5 {[%clk 0:00:00]}  bxa5 {[%clk 0:00:00]} 28. Rb7 {[%clk 0:00:00]}  Nd6 {[%clk 0:00:00]} 29. Rd7 {[%clk 0:00:00]}  Nxe4 {[%clk 0:00:00]} 30. Rxa5 {[%clk 0:00:00]}  Bxf2+ {[%clk 0:00:00]} 31. Kf1 {[%clk 0:00:00]}  Rc2 {[%clk 0:00:00]} 32. g4 {[%clk 0:00:00]}  Ng3+ {[%clk 0:00:00]} 33. Kg2 {[%clk 0:00:00]}  Be1+ {[%clk 0:00:00]} 34. Kg1 {[%clk 0:00:00]}  Bxa5 {[%clk 0:00:00]} 35. Ne7 {[%clk 0:00:00]}  Bb6+ {[%clk 0:00:00]} 0-1


[Site "https://www.chess.com"]

[Event "Titled Tuesday Blitz August 16 Early 2022"]
[White "Miszler, Levente"]
[Black "Zhigalko, Sergei"]
[WhiteFideId "763276"]
[BlackFideId "13502956"]
[WhiteElo "1966"]
[BlackElo "2662"]
[Result "0-1"]
[Round "01"]
[TimeControl "180+1"]
[Date "2022.08.16"]
[WhiteClock "0:00:33"]
[BlackClock "0:01:52"]

1. d4 {[%clk 0:03:00]}  Nf6 {[%clk 0:02:59]} 2. Nf3 {[%clk 0:02:53]}  e6 {[%clk 0:02:59]} 3. Bg5 {[%clk 0:02:46]}  h6 {[%clk 0:02:58]} 4. Bh4 {[%clk 0:02:45]}  b6 {[%clk 0:02:57]} 5. c3 {[%clk 0:02:39]}  Bb7 {[%clk 0:02:57]} 6. Nbd2 {[%clk 0:02:39]}  Be7 {[%clk 0:02:57]} 7. Qc2 {[%clk 0:02:39]}  c5 {[%clk 0:02:50]} 8. e4 {[%clk 0:02:35]}  Nc6 {[%clk 0:02:51]} 9. e5 {[%clk 0:02:07]}  Nd5 {[%clk 0:02:49]} 10. Bxe7 {[%clk 0:02:08]}  Qxe7 {[%clk 0:02:49]} 11. Ne4 {[%clk 0:02:08]}  O-O {[%clk 0:02:49]} 12. Nd6 {[%clk 0:02:07]}  Rab8 {[%clk 0:02:37]} 13. a3 {[%clk 0:01:40]}  Ba8 {[%clk 0:02:31]} 14. Bb5 {[%clk 0:01:30]}  f6 {[%clk 0:02:20]} 15. Bxc6 {[%clk 0:01:18]}  Bxc6 {[%clk 0:02:20]} 16. O-O {[%clk 0:01:18]}  fxe5 {[%clk 0:02:12]} 17. dxe5 {[%clk 0:01:16]}  Rxf3 {[%clk 0:02:10]} 18. Ne4 {[%clk 0:00:41]}  Rf5 {[%clk 0:02:03]} 19. f4 {[%clk 0:00:39]}  Ne3 {[%clk 0:01:54]} 20. Qd3 {[%clk 0:00:37]}  Nxf1 {[%clk 0:01:54]} 21. Rxf1 {[%clk 0:00:38]}  Rbf8 {[%clk 0:01:53]} 22. g3 {[%clk 0:00:37]}  Bxe4 {[%clk 0:01:53]} 23. Qxe4 {[%clk 0:00:37]}  g5 {[%clk 0:01:53]} 24. g4 {[%clk 0:00:33]}  Rxf4 {[%clk 0:01:52]} 0-1


[Site "https://www.chess.com"]

[Event "Titled Tuesday Blitz August 16 Early 2022"]
[White "Mitrabha, Guha"]
[Black "Sivakumar, Shaaketh"]
[WhiteFideId "5057000"]
[BlackFideId "30940176"]
[WhiteElo "2499"]
[BlackElo "1799"]
[Result "1-0"]
[Round "01"]
[TimeControl "180+2"]
[Date "2022.08.18"]
[WhiteClock "0:00:00"]
[BlackClock "0:00:00"]

1. c4 {[%clk 0:00:00]}  e6 {[%clk 0:00:00]} 2. Nc3 {[%clk 0:00:00]}  Nf6 {[%clk 0:00:00]} 3. e4 {[%clk 0:00:00]}  c5 {[%clk 0:00:00]} 4. e5 {[%clk 0:00:00]}  Ng8 {[%clk 0:00:00]} 5. d4 {[%clk 0:00:00]}  cxd4 {[%clk 0:00:00]} 6. Qxd4 {[%clk 0:00:00]}  Nc6 {[%clk 0:00:00]} 7. Qe4 {[%clk 0:00:00]}  d6 {[%clk 0:00:00]} 8. Nf3 {[%clk 0:00:00]}  dxe5 {[%clk 0:00:00]} 9. Nxe5 {[%clk 0:00:00]}  Nxe5 {[%clk 0:00:00]} 10. Qxe5 {[%clk 0:00:00]}  Nf6 {[%clk 0:00:00]} 11. Bg5 {[%clk 0:00:00]}  Bd6 {[%clk 0:00:00]} 12. Qd4 {[%clk 0:00:00]}  Bb4 {[%clk 0:00:00]} 13. Qxd8+ {[%clk 0:00:00]}  Kxd8 {[%clk 0:00:00]} 14. O-O-O+ {[%clk 0:00:00]}  Ke7 {[%clk 0:00:00]} 15. Bd2 {[%clk 0:00:00]}  b6 {[%clk 0:00:00]} 16. a3 {[%clk 0:00:00]}  Bc5 {[%clk 0:00:00]} 17. f3 {[%clk 0:00:00]}  Bb7 {[%clk 0:00:00]} 18. Bd3 {[%clk 0:00:00]}  Rhd8 {[%clk 0:00:00]} 19. Bc2 {[%clk 0:00:00]}  Rac8 {[%clk 0:00:00]} 20. Rhe1 {[%clk 0:00:00]}  a6 {[%clk 0:00:00]} 21. Kb1 {[%clk 0:00:00]}  Kf8 {[%clk 0:00:00]} 22. Bf4 {[%clk 0:00:00]}  Kg8 {[%clk 0:00:00]} 23. Rxd8+ {[%clk 0:00:00]}  Rxd8 {[%clk 0:00:00]} 24. Na4 {[%clk 0:00:00]}  Bd4 {[%clk 0:00:00]} 25. Bc7 {[%clk 0:00:00]}  Rc8 {[%clk 0:00:00]} 26. Bxb6 {[%clk 0:00:00]}  Rxc4 {[%clk 0:00:00]} 27. Rd1 {[%clk 0:00:00]}  e5 {[%clk 0:00:00]} 28. Bxd4 {[%clk 0:00:00]}  Rxd4 {[%clk 0:00:00]} 29. Rxd4 {[%clk 0:00:00]}  exd4 {[%clk 0:00:00]} 30. Nc5 {[%clk 0:00:00]}  Bc8 {[%clk 0:00:00]} 31. b4 {[%clk 0:00:00]}  Nd5 {[%clk 0:00:00]} 32. Bd3 {[%clk 0:00:00]}  Nf4 {[%clk 0:00:00]} 33. Bxa6 {[%clk 0:00:00]}  Bf5+ {[%clk 0:00:00]} 34. Kb2 {[%clk 0:00:00]}  d3 {[%clk 0:00:00]} 35. Kc3 {[%clk 0:00:00]}  Nxg2 {[%clk 0:00:00]} 36. Bxd3 {[%clk 0:00:00]}  Bc8 {[%clk 0:00:00]} 37. a4 {[%clk 0:00:00]}  Ne3 {[%clk 0:00:00]} 38. Be4 {[%clk 0:00:00]}  f5 {[%clk 0:00:00]} 39. Bc6 {[%clk 0:00:00]}  g5 {[%clk 0:00:00]} 40. b5 {[%clk 0:00:00]}  Kf8 {[%clk 0:00:00]} 41. a5 {[%clk 0:00:00]}  Ke7 {[%clk 0:00:00]} 42. a6 {[%clk 0:00:00]}  Kd6 {[%clk 0:00:00]} 43. a7 {[%clk 0:00:00]}  Kxc5 {[%clk 0:00:00]} 44. a8=Q {[%clk 0:00:00]} 1-0


[Site "https://www.chess.com"]

[Event "Titled Tuesday Blitz August 16 Early 2022"]
[White "Nazari, Arad"]
[Black "Rios Escobar, Adan"]
[WhiteFideId "12577324"]
[BlackFideId "3403645"]
[WhiteElo "2129"]
[BlackElo "2276"]
[Result "1-0"]
[Round "01"]
[TimeControl "180+2"]
[Date "2022.08.18"]
[WhiteClock "0:00:00"]
[BlackClock "0:00:00"]

1. e4 {[%clk 0:00:00]}  c5 {[%clk 0:00:00]} 2. Nf3 {[%clk 0:00:00]}  d6 {[%clk 0:00:00]} 3. Bb5+ {[%clk 0:00:00]}  Nd7 {[%clk 0:00:00]} 4. c3 {[%clk 0:00:00]}  Nf6 {[%clk 0:00:00]} 5. Qe2 {[%clk 0:00:00]}  a6 {[%clk 0:00:00]} 6. Ba4 {[%clk 0:00:00]}  b5 {[%clk 0:00:00]} 7. Bc2 {[%clk 0:00:00]}  e5 {[%clk 0:00:00]} 8. d4 {[%clk 0:00:00]}  Be7 {[%clk 0:00:00]} 9. O-O {[%clk 0:00:00]}  O-O {[%clk 0:00:00]} 10. d5 {[%clk 0:00:00]}  a5 {[%clk 0:00:00]} 11. Na3 {[%clk 0:00:00]}  Ba6 {[%clk 0:00:00]} 12. Nxb5 {[%clk 0:00:00]}  c4 {[%clk 0:00:00]} 13. a4 {[%clk 0:00:00]}  Nb6 {[%clk 0:00:00]} 14. Be3 {[%clk 0:00:00]}  Rc8 {[%clk 0:00:00]} 15. Na7 {[%clk 0:00:00]}  Nbd7 {[%clk 0:00:00]} 16. Nxc8 {[%clk 0:00:00]}  Qxc8 {[%clk 0:00:00]} 17. Nd2 {[%clk 0:00:00]}  Nc5 {[%clk 0:00:00]} 18. f3 {[%clk 0:00:00]}  Qc7 {[%clk 0:00:00]} 19. Qf2 {[%clk 0:00:00]}  Rb8 {[%clk 0:00:00]} 20. Bxc5 {[%clk 0:00:00]}  Rxb2 {[%clk 0:00:00]} 21. Be3 {[%clk 0:00:00]}  Rxc2 {[%clk 0:00:00]} 22. Rfc1 {[%clk 0:00:00]}  Rxc1+ {[%clk 0:00:00]} 23. Rxc1 {[%clk 0:00:00]}  Bd8 {[%clk 0:00:00]} 24. Rb1 {[%clk 0:00:00]}  Nd7 {[%clk 0:00:00]} 25. Rb2 {[%clk 0:00:00]}  h6 {[%clk 0:00:00]} 26. Nb1 {[%clk 0:00:00]}  Nc5 {[%clk 0:00:00]} 27. Bxc5 {[%clk 0:00:00]}  dxc5 {[%clk 0:00:00]} 28. Na3 {[%clk 0:00:00]}  Qd7 {[%clk 0:00:00]} 29. Nb5 {[%clk 0:00:00]}  Qc8 {[%clk 0:00:00]} 30. Na7 {[%clk 0:00:00]}  Qd7 {[%clk 0:00:00]} 31. Nc6 {[%clk 0:00:00]}  Bg5 {[%clk 0:00:00]} 32. Qxc5 {[%clk 0:00:00]}  Bc1 {[%clk 0:00:00]} 33. Rb8+ {[%clk 0:00:00]}  Kh7 {[%clk 0:00:00]} 34. Qf8 {[%clk 0:00:00]}  Bb7 {[%clk 0:00:00]} 35. Qh8+ {[%clk 0:00:00]}  Kg6 {[%clk 0:00:00]} 36. Nxe5+ {[%clk 0:00:00]} 1-0


[Site "https://www.chess.com"]